bitfinex/quotes_BTCUSD_20240803
["timestamp","ask_amount","ask_price","bid_price","bid_amount"]
[1722682542458,0.16320452,61909.0,61908.0,0.62551772]
[1722682543615,0.16320452,61909.0,61908.0,0.75956467]
[1722682543616,0.16020452,61909.0,61908.0,0.75956467]
[1722682543842,0.16120452,61909.0,61908.0,0.75956467]
[1722682544220,0.15820452,61909.0,61908.0,0.62551772]
[1722682544802,0.15820452,61909.0,61908.0,0.75964484]
[1722682545409,0.15820452,61909.0,61908.0,0.62551772]
[1722682545612,0.15820452,61909.0,61908.0,0.75962191]
[1722682545808,0.15820452,61909.0,61908.0,0.62551772]
[1722682546425,0.15903452,61909.0,61908.0,0.62551772]
[1722682546621,0.15903452,61909.0,61908.0,0.60665]
[1722682547008,0.15903452,61909.0,61908.0,0.6255063]
[1722682547669,0.15903452,61909.0,61908.0,0.75974785]
[1722682548238,0.15903452,61909.0,61908.0,0.6255063]
[1722682549047,0.15903452,61909.0,61908.0,0.63531798]
[1722682549676,0.15903452,61909.0,61908.0,0.76934349]
[1722682549943,0.00183,61909.0,61908.0,1.46723662]
[1722682550170,0.00183,61909.0,61908.0,1.41773349]
[1722682550392,0.00183,61909.0,61908.0,1.17543849]
[1722682550641,0.00083,61909.0,61908.0,1.17543849]
[1722682550846,0.00083,61909.0,61908.0,1.17843849]
[1722682551051,0.00083,61909.0,61908.0,1.18843849]
[1722682551246,0.00083,61909.0,61908.0,1.28208197]
[1722682551482,0.00083,61909.0,61908.0,1.18543849]
[1722682551766,0.00183,61909.0,61908.0,1.19543849]
[1722682552413,0.00183,61909.0,61908.0,1.53436766]
[1722682552617,0.00183,61909.0,61908.0,1.63436766]
[1722682552824,0.00183,61909.0,61908.0,1.63441525]
[1722682554030,0.00183,61909.0,61908.0,1.29548608]
[1722682556403,0.00183,61909.0,61908.0,1.29563857]
[1722682556807,0.00183,61909.0,61908.0,1.53793357]
[1722682558077,0.00183,61909.0,61908.0,1.29563857]
[1722682558324,0.00183,61909.0,61908.0,1.29563669]
[1722682559087,0.00183,61909.0,61908.0,1.39215383]
[1722682559501,0.00183,61909.0,61908.0,1.44825383]
[1722682560071,0.00183,61909.0,61908.0,1.31403012]
[1722682560301,0.00183,61909.0,61908.0,1.44825855]
[1722682560478,0.00183,61909.0,61908.0,1.44825312]
[1722682563873,0.00183,61909.0,61908.0,1.38245312]
[1722682564091,0.00183,61909.0,61908.0,1.28593598]
[1722682566099,0.00183,61909.0,61908.0,1.28594297]
[1722682567527,0.00183,61909.0,61908.0,1.21094297]
[1722682567839,0.15928924,61909.0,61908.0,1.21094297]
[1722682569860,0.15928924,61909.0,61908.0,1.07671298]
[1722682570091,0.15928924,61909.0,61908.0,1.21095022]
[1722682576143,0.15928924,61909.0,61908.0,1.25918664]
[1722682576342,0.15928924,61909.0,61908.0,1.21095022]
[1722682576553,0.15928924,61909.0,61908.0,1.25918664]
[1722682576950,0.15928924,61909.0,61908.0,1.21095022]
[1722682577193,0.15928924,61909.0,61908.0,1.25925159]
[1722682577572,0.15928924,61909.0,61908.0,1.21095022]
[1722682579336,0.15928924,61909.0,61908.0,1.15485022]
[1722682579546,0.15928924,61909.0,61908.0,1.25926031]
[1722682579753,0.00183,61909.0,61908.0,1.51616577]
[1722682579961,0.00183,61909.0,61908.0,1.41956467]
[1722682580232,0.00183,61909.0,61908.0,1.66185967]
[1722682580639,0.00183,61909.0,61908.0,1.82811585]
[1722682580840,0.00183,61909.0,61908.0,1.59473092]
[1722682581260,0.00183,61909.0,61908.0,1.82811244]
[1722682581469,0.00183,61909.0,61908.0,1.66184239]
[1722682581844,0.00183,61909.0,61908.0,1.82811244]
[1722682582166,0.00183,61909.0,61908.0,1.66184239]
[1722682582343,0.00183,61909.0,61908.0,1.82811244]
[1722682583491,0.00183,61909.0,61908.0,2.14077953]
[1722682583691,0.00183,61909.0,61908.0,1.99588151]
[1722682583819,0.00183,61909.0,61908.0,1.99788151]
[1722682584018,0.00083,61912.0,61911.0,1.090273]
[1722682584265,0.00083,61912.0,61911.0,1.74231132]
[1722682584582,0.00083,61912.0,61911.0,1.7758628]
[1722682584981,0.00083,61912.0,61911.0,1.63101733]
[1722682585216,0.00083,61912.0,61911.0,1.7758628]
[1722682585387,0.00083,61912.0,61911.0,1.63101733]
[1722682586007,0.00183,61912.0,61911.0,1.63701733]
[1722682586557,0.00183,61912.0,61911.0,1.64301733]
[1722682587611,0.00183,61912.0,61911.0,1.50881143]
[1722682587843,0.00183,61912.0,61911.0,1.57591821]
[1722682588058,0.00183,61912.0,61911.0,1.64302354]
[1722682588437,0.00183,61912.0,61911.0,1.64502354]
[1722682589277,0.00183,61912.0,61911.0,1.64302354]
[1722682590276,0.00911,61913.0,61911.0,0.71403354]
[1722682590485,0.00911,61913.0,61912.0,1.8015788]
[1722682591038,0.00911,61913.0,61912.0,1.82037971]
[1722682591229,0.00019533,61920.0,61919.0,0.903978]
[1722682591429,0.00019533,61920.0,61919.0,1.23356689]
[1722682591639,0.00019533,61920.0,61919.0,1.09936043]
[1722682591819,0.00019533,61920.0,61919.0,1.17998503]
[1722682591970,0.00019533,61920.0,61919.0,1.25236366]
[1722682592151,0.00019533,61920.0,61919.0,1.17998503]
[1722682593376,0.00319533,61920.0,61919.0,1.25235768]
[1722682593786,0.00319533,61920.0,61919.0,1.17998503]
[1722682594030,0.00619533,61920.0,61919.0,1.17998503]
[1722682594823,0.00619533,61920.0,61919.0,1.17998393]
[1722682595466,0.00319533,61920.0,61919.0,1.25236318]
[1722682595646,0.00019533,61920.0,61919.0,1.17998393]
[1722682595851,0.00019533,61920.0,61919.0,1.19298393]
[1722682598176,0.00019533,61920.0,61919.0,1.05877891]
[1722682598323,0.00019533,61920.0,61919.0,1.20266745]
[1722682600708,0.15765457,61920.0,61919.0,1.20266745]
[1722682600890,0.30185457,61920.0,61919.0,0.53906545]
[1722682601121,0.30185457,61920.0,61919.0,0.39517691]
[1722682601328,0.30185457,61920.0,61919.0,0.63742791]
[1722682601758,0.30185457,61920.0,61919.0,0.87967891]
[1722682602783,0.30185457,61920.0,61919.0,0.63742791]
[1722682608228,0.30185457,61920.0,61919.0,0.77164954]
[1722682611250,0.30268457,61920.0,61919.0,0.77164954]
[1722682617342,0.30268457,61920.0,61919.0,1.01390054]
[1722682618611,0.30268457,61920.0,61919.0,1.01389479]
[1722682618819,0.30268457,61920.0,61919.0,1.01389543]
[1722682619384,0.15848457,61920.0,61919.0,1.01389543]
[1722682619618,0.15848457,61920.0,61919.0,1.01389463]
[1722682622064,0.15848457,61920.0,61919.0,1.08517445]
[1722682622263,0.15848457,61920.0,61919.0,1.21938884]
[1722682624590,0.15848457,61920.0,61919.0,1.17110769]
[1722682625562,0.15848457,61920.0,61919.0,1.24352941]
[1722682625797,0.15848457,61920.0,61919.0,1.24352933]
[1722682626844,0.15848457,61920.0,61919.0,1.24356546]
[1722682628647,0.15848457,61920.0,61919.0,1.10935107]
[1722682631528,0.15848457,61920.0,61919.0,1.10935225]
[1722682632621,0.15848457,61920.0,61919.0,1.10935078]
[1722682633029,0.15848457,61920.0,61919.0,1.10935076]
[1722682633445,0.15848457,61920.0,61919.0,1.03689173]
[1722682633655,0.15848457,61920.0,61919.0,1.03708614]
[1722682634254,0.15848457,61920.0,61919.0,1.10954396]
[1722682634861,0.15848457,61920.0,61919.0,1.03708614]
[1722682635276,0.15848457,61920.0,61919.0,1.10954367]
[1722682635476,0.15848457,61920.0,61919.0,1.03708614]
[1722682636039,0.15848457,61920.0,61919.0,1.10954364]
[1722682636246,0.23658457,61920.0,61919.0,1.10954372]
[1722682636466,0.23658457,61920.0,61919.0,1.03708615]
[1722682638438,0.29668457,61920.0,61919.0,1.03708615]
[1722682638854,0.29668457,61920.0,61919.0,1.10955374]
[1722682639054,0.21858457,61920.0,61919.0,1.10955374]
[1722682639257,0.15848457,61920.0,61919.0,1.03708615]
[1722682639731,0.15848457,61920.0,61919.0,1.03708664]
[1722682640185,0.15848457,61920.0,61919.0,1.11948664]
[1722682640953,0.15848457,61920.0,61919.0,1.03708664]
[1722682641487,0.15848457,61920.0,61919.0,1.1337406]
[1722682643105,0.15848457,61920.0,61919.0,0.99952728]
[1722682643391,0.15848457,61920.0,61919.0,1.13373907]
[1722682643639,0.15848457,61920.0,61919.0,0.99952728]
[1722682643847,0.15848457,61920.0,61919.0,1.13373878]
[1722682644375,0.15848457,61920.0,61919.0,1.03708482]
[1722682644783,0.15848457,61920.0,61919.0,1.0370843]
[1722682646643,0.15848457,61920.0,61919.0,0.90287332]
[1722682646836,0.15848457,61920.0,61919.0,1.15791156]
[1722682646991,0.15848457,61920.0,61919.0,1.25791156]
[1722682647836,0.00102533,61920.0,61919.0,1.64306256]
[1722682648148,0.00102533,61920.0,61919.0,1.58933699]
[1722682648446,0.48201164,61939.0,61938.0,0.990519]
[1722682648735,0.0091,61944.0,61943.0,0.605395]
[1722682648979,0.0091,61944.0,61943.0,0.83960598]
[1722682649232,0.16655924,61944.0,61943.0,0.83960598]
[1722682649443,0.16655924,61944.0,61943.0,0.78029716]
[1722682649732,0.0091,61944.0,61943.0,0.93746006]
[1722682649929,0.0091,61944.0,61943.0,1.17961397]
[1722682650431,0.0091,61944.0,61943.0,1.12351397]
[1722682650693,0.0091,61944.0,61943.0,1.17961397]
[1722682651188,0.16655924,61944.0,61943.0,0.02680216]
[1722682651426,0.22665924,61944.0,61943.0,0.14788116]
[1722682651653,0.22665924,61944.0,61943.0,0.13988116]
[1722682651855,0.22665924,61944.0,61943.0,0.14888116]
[1722682652269,0.22665924,61944.0,61943.0,0.13988116]
[1722682652479,0.22665924,61944.0,61943.0,0.01880216]
[1722682652735,0.22665924,61944.0,61943.0,0.008]
[1722682652982,0.22665924,61944.0,61943.0,0.03680216]
[1722682653188,0.22665924,61944.0,61943.0,0.008]
[1722682653189,0.22657924,61944.0,61943.0,0.008]
[1722682653397,0.22657924,61944.0,61943.0,0.03480216]
[1722682653633,0.28267924,61944.0,61943.0,0.016]
[1722682653859,0.47885624,61944.0,61943.0,0.03480216]
[1722682654091,0.72101024,61944.0,61943.0,0.016]
[1722682654501,0.96316424,61944.0,61943.0,0.016]
[1722682654707,0.96316424,61944.0,61934.0,0.121095]
[1722682654708,0.242161,61943.0,61934.0,0.121095]
[1722682654929,0.00157439,61939.0,61934.0,0.121095]
[1722682655137,0.15745924,61942.0,61936.0,0.121092]
[1722682655138,0.15745924,61938.0,61936.0,0.121092]
[1722682655557,0.15745924,61938.0,61937.0,0.01880216]
[1722682655974,0.0601,61936.0,61929.0,0.242211]
[1722682656183,0.15745924,61935.0,61931.0,0.121102]
[1722682656382,0.15745924,61935.0,61930.0,0.36101016]
[1722682656579,0.00157439,61934.0,61931.0,0.1211]
[1722682656791,0.00157439,61932.0,61931.0,0.13990216]
[1722682657025,0.00157439,61932.0,61931.0,0.23990216]
[1722682657026,0.23255924,61932.0,61931.0,0.23990216]
[1722682657708,0.23255924,61932.0,61931.0,0.48210716]
[1722682658499,0.23255924,61932.0,61931.0,1.33965611]
[1722682658500,0.15745924,61932.0,61931.0,1.33965611]
[1722682659307,0.00157439,61939.0,61938.0,0.605442]
[1722682659502,0.15745924,61939.0,61938.0,0.661542]
[1722682659701,0.15745924,61939.0,61938.0,0.68031608]
[1722682660391,0.15845924,61939.0,61938.0,0.68031608]
[1722682660756,0.15845924,61939.0,61938.0,0.43813908]
[1722682661154,0.15845924,61939.0,61938.0,0.68031608]
[1722682661657,0.15945924,61939.0,61938.0,0.68031608]
[1722682661881,0.15945924,61939.0,61938.0,0.43813908]
[1722682662425,0.15945924,61939.0,61938.0,0.68031608]
[1722682663386,0.15945924,61939.0,61938.0,0.43813908]
[1722682663564,0.15945924,61939.0,61938.0,0.38203908]
[1722682664123,0.15945924,61939.0,61938.0,0.13986208]
[1722682664339,0.15945924,61939.0,61938.0,0.38203908]
[1722682664536,0.16103363,61939.0,61938.0,0.363265]
[1722682664766,0.15945924,61939.0,61938.0,0.38199371]
[1722682665947,0.15945924,61939.0,61938.0,0.62417071]
[1722682666762,0.15945924,61939.0,61938.0,0.38199371]
[1722682666887,0.16103363,61939.0,61938.0,0.38199371]
[1722682667962,0.16103363,61939.0,61938.0,0.13981671]
[1722682668255,0.15945924,61939.0,61938.0,0.13981671]
[1722682668458,0.16103363,61939.0,61938.0,0.38199371]
[1722682668677,0.15945924,61939.0,61938.0,0.38199371]
[1722682669140,0.16103363,61939.0,61938.0,0.38199371]
[1722682669466,0.15945924,61939.0,61938.0,0.38199371]
[1722682670632,0.15945924,61939.0,61938.0,0.13981671]
[1722682671710,0.15945924,61939.0,61938.0,0.01872871]
[1722682671928,0.16103363,61939.0,61937.0,0.121089]
[1722682672084,0.15745924,61938.0,61937.0,0.121089]
[1722682672289,0.15745924,61938.0,61937.0,0.16280301]
[1722682673097,0.91050124,61938.0,61937.0,0.01871401]
[1722682673499,0.91050124,61938.0,61926.0,0.121111]
[1722682673500,0.121102,61931.0,61926.0,0.121111]
[1722682673709,0.15903363,61930.0,61927.0,0.01753702]
[1722682673905,0.15903363,61930.0,61928.0,0.121107]
[1722682674285,0.15903363,61930.0,61929.0,0.13864302]
[1722682674484,0.15745924,61930.0,61929.0,0.13864302]
[1722682675120,0.15745924,61930.0,61929.0,0.01753702]
[1722682675531,0.27856324,61930.0,61929.0,0.01753702]
[1722682675752,0.27956324,61930.0,61926.0,0.008]
[1722682676017,0.00157439,61929.0,61926.0,0.008]
[1722682676259,0.15745924,61928.0,61926.0,0.121111]
[1722682676458,0.00157439,61927.0,61926.0,0.121111]
[1722682676594,0.15903363,61927.0,61926.0,0.121111]
[1722682676797,0.15745924,61927.0,61926.0,0.121111]
[1722682676982,0.15745924,61927.0,61926.0,0.363335]
[1722682677233,0.15745924,61927.0,61926.0,0.121111]
[1722682677645,0.15745924,61927.0,61924.0,0.24223]
[1722682677979,0.15903363,61926.0,61925.0,0.221114]
[1722682678160,0.15745924,61926.0,61925.0,0.221114]
[1722682678807,0.15745924,61926.0,61925.0,0.121114]
[1722682679003,0.15745924,61926.0,61923.0,0.121116]
[1722682679208,0.00157439,61925.0,61924.0,0.023]
[1722682679418,0.15903363,61925.0,61924.0,0.121116]
[1722682679582,0.15903363,61925.0,61924.0,0.144116]
[1722682679583,0.15745924,61925.0,61924.0,0.144116]
[1722682680480,0.15745924,61925.0,61924.0,0.146116]
[1722682680888,0.15745924,61925.0,61924.0,0.002]
[1722682681329,0.27857324,61925.0,61924.0,0.01956584]
[1722682681494,0.27857324,61925.0,61924.0,0.002]
[1722682681718,0.52080124,61925.0,61924.0,0.002]
[1722682681918,0.52080124,61925.0,61924.0,0.003]
[1722682682328,1.19995724,61925.0,61924.0,0.003]
[1722682682499,1.20995724,61925.0,61924.0,0.003]
[1722682682851,1.5068007,61925.0,61924.0,0.003]
[1722682683266,1.5068007,61925.0,61924.0,0.001]
[1722682683676,1.5078007,61925.0,61924.0,0.002]
[1722682684110,1.5078007,61925.0,61924.0,0.001]
[1722682684335,1.5078007,61925.0,61924.0,0.002]
[1722682684336,1.5288007,61925.0,61924.0,0.002]
[1722682685323,1.47418524,61925.0,61924.0,0.002]
[1722682687187,1.45418524,61925.0,61924.0,0.002]
[1722682687395,1.47418524,61925.0,61924.0,0.002]
[1722682691294,1.55818524,61925.0,61924.0,0.002]
[1722682692401,1.55818524,61925.0,61924.0,0.0018]
[1722682693582,3.85618524,61925.0,61924.0,0.0018]
[1722682695564,3.71608524,61925.0,61924.0,0.0018]
[1722682695774,3.47385724,61925.0,61924.0,0.0018]
[1722682696859,3.47366293,61925.0,61924.0,0.0018]
[1722682698535,3.44366293,61925.0,61924.0,0.0018]
[1722682699613,2.95920693,61925.0,61924.0,0.0018]
[1722682699780,2.82060693,61925.0,61924.0,0.0018]
[1722682700383,2.57837893,61925.0,61924.0,0.0018]
[1722682700751,2.81960693,61925.0,61924.0,0.0008]
[1722682700927,3.20303493,61925.0,61924.0,0.0008]
[1722682701071,3.20303493,61925.0,61924.0,0.001]
[1722682701283,3.20303493,61925.0,61913.0,0.325688]
[1722682701284,0.24225,61920.0,61914.0,0.121135]
[1722682701552,0.121128,61918.0,61915.0,0.01657077]
[1722682701711,0.15903363,61917.0,61915.0,0.01657077]
[1722682702122,0.28016363,61917.0,61913.0,0.000913]
[1722682702336,0.121134,61915.0,61914.0,0.01656159]
[1722682702562,0.121134,61915.0,61913.0,0.000913]
[1722682702563,0.121135,61914.0,61913.0,0.000913]
[1722682702807,0.52243963,61914.0,61913.0,0.000913]
[1722682703049,0.52086524,61914.0,61913.0,0.000913]
[1722682703289,0.15745924,61914.0,61913.0,0.000913]
[1722682703730,0.15903363,61914.0,61913.0,0.000913]
[1722682704214,0.28016863,61914.0,61913.0,0.000913]
[1722682704452,0.15745924,61914.0,61913.0,0.000913]
[1722682704680,0.15903363,61914.0,61913.0,0.003913]
[1722682706820,0.15745924,61914.0,61913.0,0.003913]
[1722682707035,0.15745924,61914.0,61913.0,0.19085]
[1722682707688,0.15745924,61914.0,61913.0,0.069713]
[1722682710048,0.15745924,61914.0,61913.0,0.19085]
[1722682711215,0.15745924,61914.0,61913.0,0.069713]
[1722682712023,0.15745924,61914.0,61913.0,0.19085]
[1722682712413,0.15745924,61914.0,61913.0,0.069713]
[1722682714060,0.15745924,61914.0,61913.0,0.08628423]
[1722682714649,0.15745924,61914.0,61913.0,0.02048423]
[1722682714849,0.34369424,61914.0,61913.0,0.02048423]
[1722682715264,0.34369424,61914.0,61913.0,0.003913]
[1722682715664,0.58753963,61914.0,61913.0,0.003913]
[1722682715874,0.58596524,61914.0,61913.0,0.003913]
[1722682718626,0.22255924,61914.0,61913.0,0.003913]
[1722682718834,0.15745924,61914.0,61913.0,0.003913]
[1722682719134,0.15903363,61914.0,61913.0,0.003913]
[1722682719494,0.15903363,61914.0,61913.0,0.02048712]
[1722682720038,0.28016863,61914.0,61913.0,0.02048712]
[1722682720236,0.27859424,61914.0,61913.0,0.02048712]
[1722682720444,0.27859424,61914.0,61913.0,0.003913]
[1722682726526,0.15745924,61914.0,61913.0,0.003913]
[1722682726741,0.28016863,61914.0,61913.0,0.003913]
[1722682727112,0.27859424,61914.0,61913.0,0.003913]
[1722682727611,0.52086524,61914.0,61913.0,0.02048742]
[1722682727869,0.52086524,61914.0,61913.0,0.003913]
[1722682728654,0.59756524,61914.0,61913.0,0.003913]
[1722682729810,0.83983624,61914.0,61913.0,0.003913]
[1722682730908,0.90193624,61914.0,61913.0,0.003913]
[1722682734276,1.15420724,61914.0,61913.0,0.003913]
[1722682734714,1.14420724,61914.0,61913.0,0.003913]
[1722682734924,1.19865309,61914.0,61913.0,0.003913]
[1722682735335,1.14420724,61914.0,61913.0,0.003913]
[1722682735542,1.19805782,61914.0,61913.0,0.003913]
[1722682735705,1.19805782,61914.0,61913.0,0.001913]
[1722682735910,1.14520724,61914.0,61913.0,0.001913]
[1722682736637,1.14520724,61914.0,61913.0,0.000913]
[1722682736939,1.14620724,61914.0,61913.0,0.000913]
[1722682740145,1.15620724,61914.0,61913.0,0.000913]
[1722682740771,1.21010998,61914.0,61913.0,0.000913]
[1722682741168,1.21011165,61914.0,61913.0,0.000913]
[1722682741366,1.23011165,61914.0,61913.0,0.000913]
[1722682741790,1.47238265,61914.0,61913.0,0.000913]
[1722682742598,1.21011165,61914.0,61913.0,0.000913]
[1722682743020,1.06131165,61914.0,61913.0,0.000913]
[1722682743365,1.00740724,61914.0,61913.0,0.000913]
[1722682743562,0.76513624,61914.0,61913.0,0.000913]
[1722682744410,0.76513624,61914.0,61913.0,0.000713]
[1722682744830,1.00740724,61914.0,61913.0,0.000713]
[1722682749017,0.76513624,61914.0,61913.0,0.000713]
[1722682749223,0.82113624,61914.0,61913.0,0.000713]
[1722682749425,0.76513624,61914.0,61913.0,0.000713]
[1722682751186,0.52286524,61914.0,61913.0,0.000713]
[1722682751402,0.52286524,61914.0,61913.0,0.0173393]
[1722682751647,0.52286524,61914.0,61913.0,0.000713]
[1722682752610,0.28059424,61914.0,61913.0,0.065813]
[1722682753084,0.15945924,61914.0,61913.0,0.0824393]
[1722682753331,0.16103363,61914.0,61913.0,0.0824393]
[1722682754740,0.58043963,61914.0,61913.0,0.0173393]
[1722682754948,0.33659424,61914.0,61913.0,0.0173393]
[1722682760253,0.57886524,61914.0,61913.0,0.0173393]
[1722682762701,0.33659424,61914.0,61913.0,0.0173393]
[1722682765260,0.57886524,61914.0,61913.0,0.0173393]
[1722682766511,0.82113624,61914.0,61913.0,0.0173393]
[1722682766661,0.82113624,61914.0,61913.0,0.000713]
[1722682767041,1.12840724,61914.0,61913.0,0.000713]
[1722682767333,1.13840724,61914.0,61913.0,0.000713]
[1722682767542,1.193139,61914.0,61913.0,0.000713]
[1722682769290,1.19308044,61914.0,61913.0,0.000713]
[1722682770931,1.19391044,61914.0,61913.0,0.000713]
[1722682772109,1.13923724,61914.0,61913.0,0.000713]
[1722682772408,1.19379121,61914.0,61913.0,0.000713]
[1722682774247,1.18379121,61914.0,61913.0,0.000713]
[1722682774565,1.19379121,61914.0,61913.0,0.000713]
[1722682774769,1.27139121,61914.0,61913.0,0.000713]
[1722682775753,1.27100779,61914.0,61913.0,0.000713]
[1722682777251,1.21683724,61914.0,61913.0,0.000713]
[1722682777646,1.27079862,61914.0,61913.0,0.000713]
[1722682778247,1.26079862,61914.0,61913.0,0.000713]
[1722682779248,1.26087254,61914.0,61913.0,0.000713]
[1722682779449,1.29087254,61914.0,61913.0,0.000713]
[1722682779649,1.23683724,61914.0,61913.0,0.000713]
[1722682779821,1.29088844,61914.0,61913.0,0.000713]
[1722682781224,1.27088844,61914.0,61913.0,0.000713]
[1722682782964,1.27088752,61914.0,61913.0,0.000713]
[1722682786034,1.21683724,61914.0,61913.0,0.000713]
[1722682786234,1.27076273,61914.0,61913.0,0.000713]
[1722682787375,1.27056833,61914.0,61913.0,0.000713]
[1722682790105,1.27041068,61914.0,61913.0,0.000713]
[1722682790353,1.21664284,61914.0,61913.0,0.000713]
[1722682790585,1.27041068,61914.0,61913.0,0.000713]
[1722682791486,1.27023393,61914.0,61913.0,0.000713]
[1722682794129,1.29023393,61914.0,61913.0,0.000713]
[1722682799024,1.28923393,61914.0,61913.0,0.000713]
[1722682799233,1.28881279,61914.0,61913.0,0.000713]
[1722682799452,1.29481279,61914.0,61913.0,0.001713]
[1722682799886,1.28881279,61914.0,61913.0,0.000713]
[1722682800118,1.26881279,61914.0,61913.0,0.001713]
[1722682800337,1.29381279,61914.0,61913.0,0.001713]
[1722682800546,1.24764284,61914.0,61913.0,0.002713]
[1722682800762,1.29465568,61914.0,61913.0,0.001713]
[1722682800973,1.24764284,61914.0,61913.0,0.002713]
[1722682801175,1.30065593,61914.0,61913.0,0.002713]
[1722682802928,1.24764284,61914.0,61913.0,0.002713]
[1722682803145,1.30066502,61914.0,61913.0,0.002713]
[1722682804633,2.43766502,61914.0,61913.0,0.002713]
[1722682806283,2.38464284,61914.0,61913.0,0.002713]
[1722682806491,2.43741992,61914.0,61913.0,0.002713]
[1722682806699,3.0143112,61914.0,61913.0,0.002713]
[1722682806907,3.03955851,61914.0,61913.0,0.002713]
[1722682807116,3.18509348,61914.0,61913.0,0.002713]
[1722682807612,3.17909348,61914.0,61913.0,0.001713]
[1722682807791,3.02655851,61914.0,61913.0,0.001713]
[1722682807990,2.99775948,61914.0,61913.0,0.001713]
[1722682808186,2.94075948,61914.0,61913.0,0.002713]
[1722682808395,2.68409092,61914.0,61913.0,0.002713]
[1722682809023,2.68909092,61914.0,61913.0,0.000713]
[1722682809657,2.70309092,61914.0,61913.0,0.001713]
[1722682809881,2.83939811,61914.0,61913.0,0.001713]
[1722682810133,2.83939782,61914.0,61913.0,0.001713]
[1722682810590,2.85339782,61914.0,61913.0,0.002713]
[1722682810824,2.83940236,61914.0,61913.0,0.001713]
[1722682811181,2.85340236,61914.0,61913.0,0.001713]
[1722682811409,2.59113136,61914.0,61913.0,0.001713]
[1722682811760,2.46989712,61914.0,61913.0,0.001713]
[1722682812794,2.48989712,61914.0,61913.0,0.001713]
[1722682813207,2.42204284,61914.0,61913.0,0.001713]
[1722682813406,2.60749945,61914.0,61913.0,0.001713]
[1722682814213,2.69059945,61914.0,61913.0,0.001713]
[1722682814383,2.98193621,61914.0,61913.0,0.001713]
[1722682815618,3.08243992,61914.0,61913.0,0.001713]
[1722682815815,2.98193621,61914.0,61913.0,0.001713]
[1722682816388,3.22805833,61914.0,61913.0,0.001713]
[1722682816720,2.91771384,61914.0,61913.0,0.001713]
[1722682816892,3.08268183,61914.0,61913.0,0.001713]
[1722682817127,2.98206018,61914.0,61913.0,0.001713]
[1722682817342,2.98363457,61914.0,61913.0,0.001713]
[1722682818612,2.98206018,61914.0,61913.0,0.001713]
[1722682819092,3.08313848,61914.0,61913.0,0.001713]
[1722682819340,3.02713848,61914.0,61913.0,0.001713]
[1722682819603,2.98206018,61914.0,61913.0,0.001713]
[1722682819834,3.08313916,61914.0,61913.0,0.001713]
[1722682820558,2.91771384,61914.0,61913.0,0.001713]
[1722682820783,3.08381504,61914.0,61913.0,0.001713]
[1722682821197,2.98264056,61914.0,61913.0,0.001713]
[1722682821809,2.98274873,61914.0,61913.0,0.001713]
[1722682822865,2.92674873,61914.0,61913.0,0.001713]
[1722682823014,2.98274873,61914.0,61913.0,0.001713]
[1722682825581,3.08433841,61914.0,61913.0,0.001713]
[1722682827133,3.08241508,61914.0,61913.0,0.001713]
[1722682830958,2.91771384,61914.0,61913.0,0.001713]
[1722682831158,3.08255116,61914.0,61913.0,0.001713]
[1722682833570,3.45055116,61914.0,61913.0,0.001713]
[1722682833777,4.73455116,61914.0,61913.0,0.001713]
[1722682837101,1.348318,61909.0,61908.0,0.000913]
[1722682837310,3.7445485,61909.0,61908.0,0.000913]
[1722682837518,3.7445485,61909.0,61888.0,0.000913]
[1722682837519,0.934141,61900.0,61888.0,0.000913]
[1722682837751,0.934141,61900.0,61892.0,0.1446]
[1722682837752,3.79680335,61900.0,61892.0,0.1446]
[1722682838831,3.89845447,61900.0,61892.0,0.1446]
[1722682839066,3.89845447,61900.0,61899.0,0.001913]
[1722682839239,3.98110335,61900.0,61899.0,0.001913]
[1722682839582,4.12150335,61900.0,61899.0,0.001913]
[1722682840226,4.02622521,61900.0,61899.0,0.001913]
[1722682840428,3.96110335,61900.0,61899.0,0.001913]
[1722682840621,3.97510335,61900.0,61899.0,0.002913]
[1722682840825,3.91910335,61900.0,61899.0,0.001913]
[1722682841043,3.96110335,61900.0,61899.0,0.000913]
[1722682841245,3.80480335,61900.0,61899.0,0.001913]
[1722682841451,3.48360024,61900.0,61899.0,0.000913]
[1722682841652,3.48197463,61900.0,61899.0,0.000913]
[1722682841900,3.53797463,61900.0,61899.0,0.000913]
[1722682842099,3.55197463,61900.0,61899.0,0.001913]
[1722682842628,3.53797463,61900.0,61899.0,0.001913]
[1722682843059,2.96732263,61900.0,61899.0,0.001913]
[1722682843271,2.96732263,61900.0,61899.0,0.145513]
[1722682843272,2.48345924,61900.0,61899.0,0.145513]
[1722682843486,2.59062224,61900.0,61899.0,0.145513]
[1722682843691,2.46945924,61900.0,61899.0,0.145513]
[1722682843892,2.48345924,61900.0,61899.0,0.146513]
[1722682844095,2.46945924,61900.0,61899.0,0.146513]
[1722682844500,2.46945924,61900.0,61899.0,0.145513]
[1722682844831,2.46945924,61900.0,61899.0,0.146513]
[1722682845457,2.48345924,61900.0,61899.0,0.146513]
[1722682845682,2.48345924,61900.0,61899.0,0.510008]
[1722682845869,1.32245924,61900.0,61899.0,0.752338]
[1722682846074,1.32245924,61900.0,61899.0,0.52267853]
[1722682846274,1.32245924,61900.0,61899.0,0.76500853]
[1722682846971,1.30845924,61900.0,61899.0,0.76400853]
[1722682847386,1.30845924,61900.0,61899.0,0.76500853]
[1722682847589,1.29445924,61900.0,61899.0,0.76400853]
[1722682848000,1.29645924,61900.0,61899.0,0.52167853]
[1722682848383,1.31045924,61900.0,61899.0,0.76400853]
[1722682848844,1.29645924,61900.0,61899.0,0.76400853]
[1722682849179,1.29745924,61900.0,61899.0,0.76400853]
[1722682849385,1.29745924,61900.0,61899.0,0.52167853]
[1722682849625,1.29745924,61900.0,61899.0,0.27934853]
[1722682850027,1.29745924,61900.0,61899.0,0.52167853]
[1722682851261,1.29745924,61900.0,61899.0,0.76400853]
[1722682854789,1.29745924,61900.0,61899.0,1.00633853]
[1722682857272,0.16045924,61900.0,61899.0,1.24866853]
[1722682857474,0.16045924,61900.0,61899.0,1.40592599]
[1722682858034,0.15945924,61900.0,61899.0,1.40592599]
[1722682858247,0.002,61900.0,61899.0,1.40592599]
[1722682858441,0.003,61900.0,61899.0,1.38166853]
[1722682858655,0.003,61900.0,61899.0,1.58843105]
[1722682858848,0.003,61900.0,61899.0,1.51591799]
[1722682859052,0.003,61900.0,61899.0,1.75824799]
[1722682859053,0.002,61900.0,61899.0,1.75824799]
[1722682859260,0.00083,61914.0,61899.0,1.75824799]
[1722682859261,0.00083,61914.0,61913.0,0.746987]
[1722682859452,0.00083,61914.0,61913.0,1.068262]